[Event "Titled Tuesday Blitz June 27 Early 2023"]
[White "Pandey Srishti"]
[Black "Zaichenko, Daria"]
[WhiteFideId "35093290"]
[BlackFideId "4197453"]
[WhiteElo "2431"]
[BlackElo "2273"]
[Result "1-0"]
[Round "5"]
[TimeControl "180+2"]
[Date "2023.06.27"]
[WhiteClock "0:00:11"]
[BlackClock "0:00:48"]
[Board "181"]

1. e4 {[%clk 0:03:00]}  c5 {[%clk 0:02:58]} 2. Nf3 {[%clk 0:03:00]}  Nc6 {[%clk 0:02:58]} 3. d4 {[%clk 0:03:00]}  cxd4 {[%clk 0:02:58]} 4. Nxd4 {[%clk 0:03:00]}  Nf6 {[%clk 0:02:58]} 5. Nc3 {[%clk 0:02:56]}  d6 {[%clk 0:02:57]} 6. Bg5 {[%clk 0:02:48]}  Bd7 {[%clk 0:02:50]} 7. Qd2 {[%clk 0:02:43]}  a6 {[%clk 0:02:51]} 8. f4 {[%clk 0:02:42]}  e6 {[%clk 0:02:51]} 9. O-O-O {[%clk 0:02:42]}  Be7 {[%clk 0:02:51]} 10. Nf3 {[%clk 0:02:41]}  b5 {[%clk 0:02:42]} 11. e5 {[%clk 0:02:35]}  dxe5 {[%clk 0:02:39]} 12. fxe5 {[%clk 0:02:33]}  Ng4 {[%clk 0:02:39]} 13. Bxe7 {[%clk 0:02:31]}  Qxe7 {[%clk 0:02:39]} 14. Qe1 {[%clk 0:02:12]}  Ngxe5 {[%clk 0:02:29]} 15. Nxe5 {[%clk 0:02:00]}  Qg5+ {[%clk 0:02:28]} 16. Kb1 {[%clk 0:01:58]}  Qxe5 {[%clk 0:02:28]} 17. Ne4 {[%clk 0:01:57]}  Rd8 {[%clk 0:01:59]} 18. Nd6+ {[%clk 0:01:48]}  Ke7 {[%clk 0:01:56]} 19. Qh4+ {[%clk 0:01:47]}  f6 {[%clk 0:01:50]} 20. Qg4 {[%clk 0:01:17]}  f5 {[%clk 0:01:42]} 21. Qh4+ {[%clk 0:01:05]}  Qf6 {[%clk 0:01:42]} 22. Qf2 {[%clk 0:00:34]}  Qe5 {[%clk 0:01:27]} 23. Be2 {[%clk 0:00:23]}  g5 {[%clk 0:01:05]} 24. Bh5 {[%clk 0:00:22]}  Kf6 {[%clk 0:01:03]} 25. Nf7 {[%clk 0:00:19]}  Qf4 {[%clk 0:00:50]} 26. Qxf4 {[%clk 0:00:18]}  gxf4 {[%clk 0:00:50]} 27. Nxh8 {[%clk 0:00:19]}  Kg5 {[%clk 0:00:51]} 28. Bf3 {[%clk 0:00:14]}  Ne5 {[%clk 0:00:50]} 29. Rhe1 {[%clk 0:00:12]}  Kf6 {[%clk 0:00:49]} 30. Rxe5 {[%clk 0:00:11]}  Kxe5 {[%clk 0:00:48]} 31. Nf7+ {[%clk 0:00:11]} 1-0


[Site "https://www.chess.com"]

[Event "Titled Tuesday Blitz June 27 Early 2023"]
[White "KorolDimitriy75"]
[Black "Bolanos, Fernando"]
[BlackFideId "3304094"]
[WhiteElo "2428"]
[BlackElo "2267"]
[Result "1-0"]
[Round "5"]
[TimeControl "180+2"]
[Date "2023.06.27"]
[WhiteClock "0:00:19"]
[BlackClock "0:00:21"]
[Board "182"]

1. d4 {[%clk 0:03:00]}  d5 {[%clk 0:03:00]} 2. c4 {[%clk 0:03:01]}  e6 {[%clk 0:03:00]} 3. Nc3 {[%clk 0:03:01]}  Nf6 {[%clk 0:03:00]} 4. Bg5 {[%clk 0:03:01]}  dxc4 {[%clk 0:02:59]} 5. e4 {[%clk 0:03:01]}  Be7 {[%clk 0:02:52]} 6. Bxc4 {[%clk 0:02:58]}  a6 {[%clk 0:02:51]} 7. Nf3 {[%clk 0:02:57]}  b5 {[%clk 0:02:52]} 8. Bd3 {[%clk 0:02:51]}  Bb7 {[%clk 0:02:53]} 9. Qe2 {[%clk 0:02:48]}  Nbd7 {[%clk 0:02:52]} 10. O-O {[%clk 0:02:45]}  h6 {[%clk 0:02:53]} 11. Bh4 {[%clk 0:02:44]}  O-O {[%clk 0:02:53]} 12. Rfd1 {[%clk 0:02:42]}  c5 {[%clk 0:02:52]} 13. dxc5 {[%clk 0:02:37]}  Qa5 {[%clk 0:02:34]} 14. e5 {[%clk 0:01:51]}  Nd5 {[%clk 0:02:33]} 15. Qe4 {[%clk 0:01:37]}  g6 {[%clk 0:01:29]} 16. Bxe7 {[%clk 0:01:35]}  Nxc3 {[%clk 0:01:23]} 17. Qxb7 {[%clk 0:01:30]}  Rfb8 {[%clk 0:00:59]} 18. Qxd7 {[%clk 0:01:25]}  Nxd1 {[%clk 0:01:00]} 19. Rxd1 {[%clk 0:01:15]}  Qxa2 {[%clk 0:00:57]} 20. Bf6 {[%clk 0:00:59]}  Rc8 {[%clk 0:00:46]} 21. Bxg6 {[%clk 0:00:50]}  Rf8 {[%clk 0:00:41]} 22. Qd3 {[%clk 0:00:20]}  Rfc8 {[%clk 0:00:20]} 23. Bh7+ {[%clk 0:00:19]}  Kf8 {[%clk 0:00:21]} 24. Qd6+ {[%clk 0:00:19]}  Ke8 {[%clk 0:00:21]} 25. Qe7# {[%clk 0:00:19]} 1-0


[Site "https://www.chess.com"]

[Event "Titled Tuesday Blitz June 27 Early 2023"]
[White "EdmundPlayer"]
[Black "Grossboss19"]
[WhiteElo "2260"]
[BlackElo "2427"]
[Result "1-0"]
[Round "5"]
[TimeControl "180+2"]
[Date "2023.06.27"]
[WhiteClock "0:00:14"]
[BlackClock "0:00:19"]
[Board "183"]

1. e4 {[%clk 0:02:59]}  c6 {[%clk 0:02:46]} 2. Nf3 {[%clk 0:02:57]}  d5 {[%clk 0:02:47]} 3. exd5 {[%clk 0:02:58]}  cxd5 {[%clk 0:02:46]} 4. Ne5 {[%clk 0:02:58]}  Nc6 {[%clk 0:02:41]} 5. d4 {[%clk 0:02:56]}  e6 {[%clk 0:02:38]} 6. Bb5 {[%clk 0:02:54]}  Ne7 {[%clk 0:02:37]} 7. O-O {[%clk 0:02:53]}  a6 {[%clk 0:02:36]} 8. Be2 {[%clk 0:02:43]}  Nxe5 {[%clk 0:02:33]} 9. dxe5 {[%clk 0:02:43]}  Nc6 {[%clk 0:02:33]} 10. f4 {[%clk 0:02:40]}  Bc5+ {[%clk 0:02:31]} 11. Kh1 {[%clk 0:02:39]}  O-O {[%clk 0:02:25]} 12. Nd2 {[%clk 0:02:39]}  b5 {[%clk 0:02:21]} 13. Nb3 {[%clk 0:02:38]}  Ba7 {[%clk 0:02:21]} 14. c3 {[%clk 0:02:37]}  f6 {[%clk 0:02:06]} 15. Nd4 {[%clk 0:02:29]}  Bd7 {[%clk 0:01:51]} 16. Be3 {[%clk 0:02:20]}  fxe5 {[%clk 0:01:29]} 17. Nxc6 {[%clk 0:02:19]}  Bxc6 {[%clk 0:01:29]} 18. Bxa7 {[%clk 0:02:19]}  Rxa7 {[%clk 0:01:29]} 19. fxe5 {[%clk 0:02:19]}  Raf7 {[%clk 0:01:25]} 20. Qd4 {[%clk 0:02:12]}  Qg5 {[%clk 0:01:22]} 21. Bf3 {[%clk 0:01:53]}  Rf4 {[%clk 0:01:19]} 22. Qc5 {[%clk 0:01:47]}  Be8 {[%clk 0:01:12]} 23. Rae1 {[%clk 0:01:43]}  Bh5 {[%clk 0:01:06]} 24. Qb6 {[%clk 0:01:01]}  Qf5 {[%clk 0:01:00]} 25. Re3 {[%clk 0:00:45]}  Bxf3 {[%clk 0:00:53]} 26. Rexf3 {[%clk 0:00:21]}  Qxe5 {[%clk 0:00:36]} 27. Rxf4 {[%clk 0:00:18]}  Rxf4 {[%clk 0:00:36]} 28. Rxf4 {[%clk 0:00:18]}  Qxf4 {[%clk 0:00:35]} 29. Qxe6+ {[%clk 0:00:18]}  Kf8 {[%clk 0:00:36]} 30. h3 {[%clk 0:00:12]}  Qf1+ {[%clk 0:00:32]} 31. Kh2 {[%clk 0:00:12]}  Qf4+ {[%clk 0:00:32]} 32. Kh1 {[%clk 0:00:12]}  Qc1+ {[%clk 0:00:33]} 33. Kh2 {[%clk 0:00:12]}  Qxb2 {[%clk 0:00:32]} 34. Qd6+ {[%clk 0:00:11]}  Ke8 {[%clk 0:00:29]} 35. Qe6+ {[%clk 0:00:11]}  Kf8 {[%clk 0:00:29]} 36. Qd6+ {[%clk 0:00:11]}  Kf7 {[%clk 0:00:29]} 37. Qxd5+ {[%clk 0:00:11]}  Kf6 {[%clk 0:00:30]} 38. Qd4+ {[%clk 0:00:09]}  Ke6 {[%clk 0:00:28]} 39. Qb6+ {[%clk 0:00:09]}  Kd5 {[%clk 0:00:28]} 40. Qxa6 {[%clk 0:00:08]}  Qe2 {[%clk 0:00:26]} 41. Qb7+ {[%clk 0:00:07]}  Kc5 {[%clk 0:00:26]} 42. Qc7+ {[%clk 0:00:06]}  Kd5 {[%clk 0:00:26]} 43. Qd7+ {[%clk 0:00:06]}  Kc5 {[%clk 0:00:26]} 44. Qd4+ {[%clk 0:00:06]}  Kc6 {[%clk 0:00:26]} 45. Qxg7 {[%clk 0:00:06]}  Qxa2 {[%clk 0:00:25]} 46. Qxh7 {[%clk 0:00:06]}  Qd5 {[%clk 0:00:22]} 47. Qg6+ {[%clk 0:00:06]}  Kc5 {[%clk 0:00:21]} 48. Qg7 {[%clk 0:00:04]}  Kc4 {[%clk 0:00:20]} 49. Qc7+ {[%clk 0:00:05]}  Kb3 {[%clk 0:00:20]} 50. h4 {[%clk 0:00:04]}  Qe4 {[%clk 0:00:19]} 51. Kg3 {[%clk 0:00:05]}  Qg6+ {[%clk 0:00:18]} 52. Kh3 {[%clk 0:00:05]}  Qf5+ {[%clk 0:00:18]} 53. g4 {[%clk 0:00:04]}  Qf3+ {[%clk 0:00:18]} 54. Qg3 {[%clk 0:00:05]}  Qf1+ {[%clk 0:00:18]} 55. Kh2 {[%clk 0:00:06]}  Qe2+ {[%clk 0:00:18]} 56. Kh3 {[%clk 0:00:05]}  Qf1+ {[%clk 0:00:19]} 57. Kh2 {[%clk 0:00:06]}  Qe2+ {[%clk 0:00:19]} 58. Qg2 {[%clk 0:00:06]}  Qe5+ {[%clk 0:00:20]} 59. Kh3 {[%clk 0:00:06]}  Qe3+ {[%clk 0:00:20]} 60. Qg3 {[%clk 0:00:07]}  Qc1 {[%clk 0:00:19]} 61. h5 {[%clk 0:00:07]}  Qh1+ {[%clk 0:00:17]} 62. Qh2 {[%clk 0:00:08]}  Qf1+ {[%clk 0:00:16]} 63. Kh4 {[%clk 0:00:08]}  Kxc3 {[%clk 0:00:16]} 64. Qh3+ {[%clk 0:00:08]}  Qxh3+ {[%clk 0:00:16]} 65. Kxh3 {[%clk 0:00:09]}  b4 {[%clk 0:00:17]} 66. h6 {[%clk 0:00:09]}  b3 {[%clk 0:00:18]} 67. h7 {[%clk 0:00:10]}  Kc2 {[%clk 0:00:17]} 68. h8=Q {[%clk 0:00:11]}  b2 {[%clk 0:00:18]} 69. Qxb2+ {[%clk 0:00:11]}  Kxb2 {[%clk 0:00:19]} 70. g5 {[%clk 0:00:11]}  Kc3 {[%clk 0:00:20]} 71. g6 {[%clk 0:00:12]}  Kd4 {[%clk 0:00:21]} 72. g7 {[%clk 0:00:13]}  Ke5 {[%clk 0:00:19]} 73. g8=Q {[%clk 0:00:14]} 1-0


[Site "https://www.chess.com"]

[Event "Titled Tuesday Blitz June 27 Early 2023"]
[White "Rom, Jasper"]
[Black "De Souza, Cristiano Gomes"]
[WhiteFideId "2023733"]
[BlackFideId "2151758"]
[WhiteElo "2426"]
[BlackElo "2256"]
[Result "1-0"]
[Round "5"]
[TimeControl "180+2"]
[Date "2023.06.27"]
[WhiteClock "0:00:09"]
[BlackClock "0:01:22"]
[Board "185"]

1. e4 {[%clk 0:02:52]}  c5 {[%clk 0:02:59]} 2. Nc3 {[%clk 0:02:52]}  d6 {[%clk 0:02:59]} 3. f4 {[%clk 0:02:52]}  a6 {[%clk 0:02:58]} 4. g3 {[%clk 0:02:51]}  b5 {[%clk 0:02:57]} 5. Bg2 {[%clk 0:02:51]}  Bb7 {[%clk 0:02:58]} 6. d3 {[%clk 0:02:51]}  g6 {[%clk 0:02:57]} 7. Nh3 {[%clk 0:02:50]}  Bg7 {[%clk 0:02:58]} 8. O-O {[%clk 0:02:51]}  e6 {[%clk 0:02:58]} 9. f5 {[%clk 0:02:50]}  exf5 {[%clk 0:02:58]} 10. exf5 {[%clk 0:02:42]}  Bxg2 {[%clk 0:02:57]} 11. Kxg2 {[%clk 0:02:43]}  Nf6 {[%clk 0:02:56]} 12. Qf3 {[%clk 0:02:36]}  Nbd7 {[%clk 0:02:54]} 13. Re1+ {[%clk 0:02:24]}  Ne5 {[%clk 0:02:50]} 14. Qc6+ {[%clk 0:02:17]}  Kf8 {[%clk 0:02:49]} 15. Qb7 {[%clk 0:01:52]}  Qc8 {[%clk 0:02:44]} 16. Qxc8+ {[%clk 0:01:47]}  Rxc8 {[%clk 0:02:43]} 17. Bf4 {[%clk 0:01:46]}  Nfg4 {[%clk 0:02:34]} 18. Ng5 {[%clk 0:01:36]}  h6 {[%clk 0:02:33]} 19. Nf3 {[%clk 0:01:36]}  Kg8 {[%clk 0:02:27]} 20. fxg6 {[%clk 0:01:21]}  fxg6 {[%clk 0:02:26]} 21. Nd2 {[%clk 0:00:46]}  h5 {[%clk 0:02:18]} 22. Nce4 {[%clk 0:00:44]}  Rd8 {[%clk 0:02:16]} 23. h3 {[%clk 0:00:43]}  Nh6 {[%clk 0:02:10]} 24. Nxc5 {[%clk 0:00:26]}  dxc5 {[%clk 0:01:54]} 25. Bxe5 {[%clk 0:00:26]}  c4 {[%clk 0:01:54]} 26. Nf3 {[%clk 0:00:11]}  cxd3 {[%clk 0:01:52]} 27. Rad1 {[%clk 0:00:12]}  Bxe5 {[%clk 0:01:45]} 28. Nxe5 {[%clk 0:00:10]}  Kg7 {[%clk 0:01:43]} 29. Rxd3 {[%clk 0:00:10]}  Rxd3 {[%clk 0:01:41]} 30. Nxd3 {[%clk 0:00:11]}  Rc8 {[%clk 0:01:37]} 31. c3 {[%clk 0:00:10]}  Rd8 {[%clk 0:01:36]} 32. Nf4 {[%clk 0:00:08]}  Rd2+ {[%clk 0:01:33]} 33. Re2 {[%clk 0:00:08]}  Rxe2+ {[%clk 0:01:33]} 34. Nxe2 {[%clk 0:00:08]}  Nf5 {[%clk 0:01:34]} 35. Kf3 {[%clk 0:00:08]}  Kf6 {[%clk 0:01:33]} 36. Ke4 {[%clk 0:00:08]}  Ke6 {[%clk 0:01:31]} 37. Nd4+ {[%clk 0:00:08]}  Nxd4 {[%clk 0:01:30]} 38. cxd4 {[%clk 0:00:08]}  g5 {[%clk 0:01:28]} 39. g4 {[%clk 0:00:08]}  hxg4 {[%clk 0:01:27]} 40. hxg4 {[%clk 0:00:09]}  Kd6 {[%clk 0:01:28]} 41. b4 {[%clk 0:00:09]}  Kc6 {[%clk 0:01:27]} 42. d5+ {[%clk 0:00:08]}  Kd6 {[%clk 0:01:27]} 43. Kd4 {[%clk 0:00:09]}  Ke7 {[%clk 0:01:25]} 44. Kc5 {[%clk 0:00:09]}  Kd7 {[%clk 0:01:25]} 45. d6 {[%clk 0:00:09]}  Ke6 {[%clk 0:01:22]} 46. Kc6 {[%clk 0:00:09]} 1-0


[Site "https://www.chess.com"]

[Event "Titled Tuesday Blitz June 27 Early 2023"]
[White "Large, Peter G"]
[Black "Abrosimov, Vladimir"]
[WhiteFideId "400866"]
[BlackFideId "4166892"]
[WhiteElo "2418"]
[BlackElo "2241"]
[Result "1-0"]
[Round "5"]
[TimeControl "180+2"]
[Date "2023.06.27"]
[WhiteClock "0:00:13"]
[BlackClock "0:00:37"]
[Board "186"]

1. e4 {[%clk 0:02:54]}  c5 {[%clk 0:02:47]} 2. Nc3 {[%clk 0:02:53]}  d6 {[%clk 0:02:48]} 3. Nf3 {[%clk 0:02:52]}  e6 {[%clk 0:02:48]} 4. d4 {[%clk 0:02:52]}  cxd4 {[%clk 0:02:49]} 5. Nxd4 {[%clk 0:02:53]}  Nf6 {[%clk 0:02:49]} 6. Be3 {[%clk 0:02:48]}  a6 {[%clk 0:02:48]} 7. f4 {[%clk 0:02:41]}  Be7 {[%clk 0:02:48]} 8. Bd3 {[%clk 0:02:40]}  O-O {[%clk 0:02:49]} 9. Qf3 {[%clk 0:02:38]}  Qc7 {[%clk 0:02:50]} 10. O-O {[%clk 0:02:34]}  b5 {[%clk 0:02:49]} 11. a3 {[%clk 0:02:34]}  Bb7 {[%clk 0:02:49]} 12. Rae1 {[%clk 0:02:32]}  Nc6 {[%clk 0:02:48]} 13. Nxc6 {[%clk 0:02:28]}  Bxc6 {[%clk 0:02:49]} 14. Qh3 {[%clk 0:02:26]}  e5 {[%clk 0:02:47]} 15. Nd5 {[%clk 0:02:19]}  Bxd5 {[%clk 0:02:44]} 16. exd5 {[%clk 0:02:19]}  e4 {[%clk 0:02:44]} 17. Be2 {[%clk 0:01:59]}  Qxc2 {[%clk 0:02:42]} 18. Bd4 {[%clk 0:01:54]}  Qd2 {[%clk 0:02:34]} 19. Bc3 {[%clk 0:01:52]}  Qxd5 {[%clk 0:02:29]} 20. Rd1 {[%clk 0:01:52]}  Qc5+ {[%clk 0:02:27]} 21. Kh1 {[%clk 0:01:50]}  d5 {[%clk 0:02:26]} 22. Rd2 {[%clk 0:01:27]}  Rfd8 {[%clk 0:02:19]} 23. Rfd1 {[%clk 0:01:26]}  e3 {[%clk 0:02:13]} 24. Rd3 {[%clk 0:01:17]}  Ne4 {[%clk 0:02:13]} 25. Kg1 {[%clk 0:00:49]}  Rac8 {[%clk 0:01:48]} 26. Bd4 {[%clk 0:00:44]}  Qc2 {[%clk 0:01:43]} 27. Qxe3 {[%clk 0:00:42]}  Bf6 {[%clk 0:01:36]} 28. Bg4 {[%clk 0:00:26]}  Bxd4 {[%clk 0:01:30]} 29. Rxd4 {[%clk 0:00:19]}  Rb8 {[%clk 0:01:14]} 30. Bf5 {[%clk 0:00:19]}  Qc6 {[%clk 0:00:49]} 31. Bxe4 {[%clk 0:00:17]}  Re8 {[%clk 0:00:49]} 32. Rxd5 {[%clk 0:00:16]}  Qc4 {[%clk 0:00:43]} 33. Re5 {[%clk 0:00:16]}  f6 {[%clk 0:00:41]} 34. Bd5+ {[%clk 0:00:12]}  Qxd5 {[%clk 0:00:41]} 35. Rdxd5 {[%clk 0:00:13]}  fxe5 {[%clk 0:00:41]} 36. Rxe5 {[%clk 0:00:13]}  Rxe5 {[%clk 0:00:41]} 37. Qxe5 {[%clk 0:00:14]}  Rf8 {[%clk 0:00:42]} 38. f5 {[%clk 0:00:14]}  Rf6 {[%clk 0:00:41]} 39. Qe8+ {[%clk 0:00:14]}  Rf8 {[%clk 0:00:41]} 40. Qe6+ {[%clk 0:00:14]}  Rf7 {[%clk 0:00:41]} 41. Qxa6 {[%clk 0:00:15]}  Rf6 {[%clk 0:00:42]} 42. Qxb5 {[%clk 0:00:15]}  h6 {[%clk 0:00:42]} 43. Qd5+ {[%clk 0:00:15]}  Kh7 {[%clk 0:00:42]} 44. a4 {[%clk 0:00:16]}  Rb6 {[%clk 0:00:42]} 45. b3 {[%clk 0:00:15]}  Ra6 {[%clk 0:00:40]} 46. a5 {[%clk 0:00:15]}  Ra7 {[%clk 0:00:40]} 47. b4 {[%clk 0:00:16]}  Re7 {[%clk 0:00:40]} 48. b5 {[%clk 0:00:16]}  Re2 {[%clk 0:00:40]} 49. a6 {[%clk 0:00:15]}  Rb2 {[%clk 0:00:40]} 50. a7 {[%clk 0:00:15]}  Rb1+ {[%clk 0:00:39]} 51. Kf2 {[%clk 0:00:15]}  Ra1 {[%clk 0:00:40]} 52. a8=Q {[%clk 0:00:15]}  g6 {[%clk 0:00:37]} 53. Qf7# {[%clk 0:00:13]} 1-0


[Site "https://www.chess.com"]

[Event "Titled Tuesday Blitz June 27 Early 2023"]
[White "Bochnicka, Vladimir"]
[Black "Zuriel, Marisa"]
[WhiteFideId "14943450"]
[BlackFideId "109142"]
[WhiteElo "2412"]
[BlackElo "2223"]
[Result "0-1"]
[Round "5"]
[TimeControl "180+2"]
[Date "2023.06.27"]
[WhiteClock "0:00:02"]
[BlackClock "0:00:19"]
[Board "188"]

1. e4 {[%clk 0:03:00]}  c5 {[%clk 0:02:58]} 2. Nf3 {[%clk 0:02:59]}  d6 {[%clk 0:02:58]} 3. d4 {[%clk 0:02:56]}  cxd4 {[%clk 0:02:58]} 4. Nxd4 {[%clk 0:02:57]}  Nf6 {[%clk 0:02:59]} 5. Nc3 {[%clk 0:02:56]}  a6 {[%clk 0:02:59]} 6. f3 {[%clk 0:02:57]}  e6 {[%clk 0:02:57]} 7. Be3 {[%clk 0:02:55]}  b5 {[%clk 0:02:58]} 8. g4 {[%clk 0:02:51]}  Bb7 {[%clk 0:02:57]} 9. Qd2 {[%clk 0:02:49]}  Nfd7 {[%clk 0:02:58]} 10. O-O-O {[%clk 0:02:46]}  Nb6 {[%clk 0:02:58]} 11. Bd3 {[%clk 0:02:38]}  N8d7 {[%clk 0:02:57]} 12. Kb1 {[%clk 0:02:29]}  Rc8 {[%clk 0:02:58]} 13. Rhe1 {[%clk 0:02:11]}  Be7 {[%clk 0:02:57]} 14. f4 {[%clk 0:02:09]}  g6 {[%clk 0:02:56]} 15. f5 {[%clk 0:01:59]}  e5 {[%clk 0:02:54]} 16. Nb3 {[%clk 0:01:24]}  Nc5 {[%clk 0:02:47]} 17. g5 {[%clk 0:01:11]}  b4 {[%clk 0:02:41]} 18. Ne2 {[%clk 0:01:02]}  Nxe4 {[%clk 0:02:36]} 19. Qxb4 {[%clk 0:00:55]}  Nc5 {[%clk 0:02:25]} 20. f6 {[%clk 0:00:50]}  Nd5 {[%clk 0:02:12]} 21. Qd2 {[%clk 0:00:42]}  O-O {[%clk 0:01:57]} 22. fxe7 {[%clk 0:00:38]}  Qxe7 {[%clk 0:01:58]} 23. Nxc5 {[%clk 0:00:37]}  dxc5 {[%clk 0:01:58]} 24. Bc4 {[%clk 0:00:37]}  Nb6 {[%clk 0:01:46]} 25. Qc3 {[%clk 0:00:25]}  Bf3 {[%clk 0:01:38]} 26. Rd2 {[%clk 0:00:20]}  Rb8 {[%clk 0:01:35]} 27. Bb3 {[%clk 0:00:14]}  c4 {[%clk 0:01:32]} 28. Bxb6 {[%clk 0:00:15]}  cxb3 {[%clk 0:01:30]} 29. Bc5 {[%clk 0:00:15]}  bxc2+ {[%clk 0:01:30]} 30. Qxc2 {[%clk 0:00:14]}  Qxg5 {[%clk 0:01:28]} 31. Bxf8 {[%clk 0:00:11]}  Rxf8 {[%clk 0:01:26]} 32. Nc3 {[%clk 0:00:11]}  Qh4 {[%clk 0:01:23]} 33. Rc1 {[%clk 0:00:09]}  h5 {[%clk 0:01:22]} 34. Qa4 {[%clk 0:00:09]}  Qg5 {[%clk 0:01:17]} 35. Rd6 {[%clk 0:00:07]}  Rb8 {[%clk 0:01:13]} 36. Qa5 {[%clk 0:00:05]}  Qg2 {[%clk 0:01:03]} 37. Rd8+ {[%clk 0:00:04]}  Rxd8 {[%clk 0:01:00]} 38. Qxd8+ {[%clk 0:00:05]}  Kg7 {[%clk 0:01:01]} 39. Nd5 {[%clk 0:00:04]}  Bxd5 {[%clk 0:00:57]} 40. Qd6 {[%clk 0:00:05]}  Qe4+ {[%clk 0:00:52]} 41. Ka1 {[%clk 0:00:05]}  Qe3 {[%clk 0:00:48]} 42. Rb1 {[%clk 0:00:03]}  Qd4 {[%clk 0:00:40]} 43. Qxa6 {[%clk 0:00:03]}  Be4 {[%clk 0:00:40]} 44. Rc1 {[%clk 0:00:02]}  Bd3 {[%clk 0:00:36]} 45. Qc6 {[%clk 0:00:03]}  Be4 {[%clk 0:00:36]} 46. Qc3 {[%clk 0:00:03]}  Qd6 {[%clk 0:00:33]} 47. a4 {[%clk 0:00:03]}  Bf5 {[%clk 0:00:31]} 48. a5 {[%clk 0:00:03]}  Be6 {[%clk 0:00:32]} 49. Qc5 {[%clk 0:00:03]}  Qb8 {[%clk 0:00:23]} 50. Qb6 {[%clk 0:00:01]}  Qe8 {[%clk 0:00:22]} 51. a6 {[%clk 0:00:01]}  Qa4+ {[%clk 0:00:19]} 52. Kb1 {[%clk 0:00:02]} 0-1


[Site "https://www.chess.com"]

[Event "Titled Tuesday Blitz June 27 Early 2023"]
[White "Mrudul Dehankar"]
[Black "Luxama, Jacques Muller"]
[WhiteFideId "25096990"]
[BlackFideId "11900113"]
[WhiteElo "2407"]
[BlackElo "2185"]
[Result "1-0"]
[Round "5"]
[TimeControl "180+2"]
[Date "2023.06.27"]
[WhiteClock "0:00:17"]
[BlackClock "0:00:58"]
[Board "191"]

1. e4 {[%clk 0:01:02]}  e6 {[%clk 0:02:56]} 2. d4 {[%clk 0:01:01]}  d5 {[%clk 0:02:56]} 3. e5 {[%clk 0:01:01]}  c5 {[%clk 0:02:56]} 4. c3 {[%clk 0:01:02]}  Nc6 {[%clk 0:02:55]} 5. Nf3 {[%clk 0:01:03]}  Qb6 {[%clk 0:02:55]} 6. Bd3 {[%clk 0:01:02]}  Bd7 {[%clk 0:02:53]} 7. O-O {[%clk 0:01:01]}  cxd4 {[%clk 0:02:53]} 8. Re1 {[%clk 0:01:00]}  Nge7 {[%clk 0:02:51]} 9. Na3 {[%clk 0:00:52]}  Ng6 {[%clk 0:02:46]} 10. cxd4 {[%clk 0:00:43]}  Bxa3 {[%clk 0:02:40]} 11. bxa3 {[%clk 0:00:40]}  Nxd4 {[%clk 0:02:40]} 12. Rb1 {[%clk 0:00:39]}  Nxf3+ {[%clk 0:02:38]} 13. Qxf3 {[%clk 0:00:39]}  Qc7 {[%clk 0:02:37]} 14. Qg3 {[%clk 0:00:38]}  O-O {[%clk 0:02:25]} 15. h4 {[%clk 0:00:37]}  Kh8 {[%clk 0:02:01]} 16. h5 {[%clk 0:00:35]}  Ne7 {[%clk 0:02:01]} 17. h6 {[%clk 0:00:34]}  Ng6 {[%clk 0:01:54]} 18. hxg7+ {[%clk 0:00:31]}  Kxg7 {[%clk 0:01:55]} 19. Bg5 {[%clk 0:00:28]}  Rh8 {[%clk 0:01:32]} 20. Bf6+ {[%clk 0:00:26]}  Kg8 {[%clk 0:01:30]} 21. Qe3 {[%clk 0:00:22]}  Qb8 {[%clk 0:01:16]} 22. Rxb7 {[%clk 0:00:18]}  Qxb7 {[%clk 0:01:04]} 23. Qh6 {[%clk 0:00:17]}  Nxe5 {[%clk 0:00:58]} 24. Qg7# {[%clk 0:00:17]} 1-0


[Site "https://www.chess.com"]

[Event "Titled Tuesday Blitz June 27 Early 2023"]
[White "Samarth J Rao"]
[Black "Kopczynski, Michal"]
[WhiteFideId "46652370"]
[BlackFideId "1124200"]
[WhiteElo "2183"]
[BlackElo "2406"]
[Result "0-1"]
[Round "5"]
[TimeControl "180+2"]
[Date "2023.06.27"]
[WhiteClock "0:01:19"]
[BlackClock "0:01:01"]
[Board "192"]

1. d4 {[%clk 0:02:56]}  Nf6 {[%clk 0:02:58]} 2. Nf3 {[%clk 0:02:55]}  g6 {[%clk 0:02:57]} 3. e3 {[%clk 0:02:56]}  Bg7 {[%clk 0:02:58]} 4. Bd3 {[%clk 0:02:57]}  d6 {[%clk 0:02:59]} 5. O-O {[%clk 0:02:57]}  O-O {[%clk 0:02:59]} 6. b3 {[%clk 0:02:57]}  Nc6 {[%clk 0:02:56]} 7. Bb2 {[%clk 0:02:57]}  Nd7 {[%clk 0:02:56]} 8. a3 {[%clk 0:02:56]}  e5 {[%clk 0:02:57]} 9. c4 {[%clk 0:02:56]}  f5 {[%clk 0:02:55]} 10. dxe5 {[%clk 0:02:55]}  dxe5 {[%clk 0:02:49]} 11. Be2 {[%clk 0:02:54]}  Nc5 {[%clk 0:02:29]} 12. Nc3 {[%clk 0:02:52]}  Qxd1 {[%clk 0:02:27]} 13. Rfxd1 {[%clk 0:02:52]}  Nxb3 {[%clk 0:02:26]} 14. Rab1 {[%clk 0:02:46]}  e4 {[%clk 0:02:17]} 15. Ne1 {[%clk 0:02:35]}  Be6 {[%clk 0:02:15]} 16. Nd5 {[%clk 0:02:35]}  Bxd5 {[%clk 0:01:57]} 17. cxd5 {[%clk 0:02:20]}  Nca5 {[%clk 0:01:57]} 18. Bxg7 {[%clk 0:02:11]}  Kxg7 {[%clk 0:01:58]} 19. Nc2 {[%clk 0:01:53]}  Rad8 {[%clk 0:01:55]} 20. Nb4 {[%clk 0:01:52]}  c5 {[%clk 0:01:44]} 21. dxc6 {[%clk 0:01:51]}  bxc6 {[%clk 0:01:44]} 22. Rxd8 {[%clk 0:01:42]}  Rxd8 {[%clk 0:01:43]} 23. Nxc6 {[%clk 0:01:42]}  Nxc6 {[%clk 0:01:40]} 24. Rxb3 {[%clk 0:01:42]}  Rd2 {[%clk 0:01:39]} 25. Kf1 {[%clk 0:01:41]}  Ra2 {[%clk 0:01:38]} 26. Rc3 {[%clk 0:01:38]}  Ra1+ {[%clk 0:01:35]} 27. Bd1 {[%clk 0:01:37]}  Rxd1+ {[%clk 0:01:35]} 28. Ke2 {[%clk 0:01:37]}  Rd6 {[%clk 0:01:35]} 29. Rc5 {[%clk 0:01:33]}  Kf6 {[%clk 0:01:35]} 30. h4 {[%clk 0:01:32]}  Ke6 {[%clk 0:01:35]} 31. f4 {[%clk 0:01:32]}  exf3+ {[%clk 0:01:33]} 32. gxf3 {[%clk 0:01:33]}  Kd7 {[%clk 0:01:30]} 33. h5 {[%clk 0:01:31]}  Re6 {[%clk 0:01:24]} 34. Kf2 {[%clk 0:01:30]}  Ne5 {[%clk 0:01:23]} 35. Rd5+ {[%clk 0:01:25]}  Kc6 {[%clk 0:01:23]} 36. Rd8 {[%clk 0:01:25]}  Nc4 {[%clk 0:01:19]} 37. hxg6 {[%clk 0:01:22]}  hxg6 {[%clk 0:01:18]} 38. Rd3 {[%clk 0:01:20]}  Kb5 {[%clk 0:01:12]} 39. Rc3 {[%clk 0:01:18]}  a5 {[%clk 0:01:06]} 40. f4 {[%clk 0:01:17]}  a4 {[%clk 0:01:01]} 41. Kf3 {[%clk 0:01:17]}  Rxe3+ {[%clk 0:01:00]} 42. Rxe3 {[%clk 0:01:16]}  Nxe3 {[%clk 0:01:01]} 43. Kxe3 {[%clk 0:01:17]}  Kc4 {[%clk 0:01:02]} 44. Kf3 {[%clk 0:01:18]}  Kd3 {[%clk 0:01:00]} 45. Kg3 {[%clk 0:01:19]}  Ke3 {[%clk 0:01:01]} 46. Kh3 {[%clk 0:01:18]}  Kxf4 {[%clk 0:01:01]} 47. Kh4 {[%clk 0:01:19]}  Ke3 {[%clk 0:01:01]} 48. Kh3 {[%clk 0:01:19]}  Kd3 {[%clk 0:01:01]} 0-1


[Site "https://www.chess.com"]